bitfinex/quotes_BTCUSD_20240828
["timestamp","ask_amount","ask_price","bid_price","bid_amount"]
[1724860459327,1.55251234,59023.0,59022.0,0.0128987]
[1724860459988,1.55251234,59023.0,59022.0,0.0138987]
[1724860460442,1.42778475,59023.0,59022.0,0.0018987]
[1724860460907,1.42778475,59023.0,59022.0,0.0078987]
[1724860460908,1.89044811,59023.0,59022.0,0.0078987]
[1724860461358,1.76376116,59023.0,59022.0,0.0008987]
[1724860461591,1.88944811,59023.0,59022.0,0.0038987]
[1724860461827,1.54859811,59023.0,59022.0,0.0038987]
[1724860462275,1.55059811,59023.0,59022.0,0.0008987]
[1724860462509,1.42391116,59023.0,59022.0,0.0058987]
[1724860462717,1.42391116,59023.0,59022.0,0.0038987]
[1724860463160,1.42191116,59023.0,59022.0,0.0038987]
[1724860463388,1.52424129,59023.0,59022.0,0.0038987]
[1724860463607,1.52324129,59023.0,59022.0,0.0038987]
[1724860463848,1.52524129,59023.0,59022.0,0.0038987]
[1724860464082,1.52624129,59023.0,59022.0,0.0038987]
[1724860464298,1.52424129,59023.0,59022.0,0.0008987]
[1724860464522,1.52424129,59023.0,59022.0,0.0048987]
[1724860464750,1.42491116,59023.0,59022.0,0.0048987]
[1724860464975,1.52624129,59023.0,59022.0,0.0048987]
[1724860465290,1.52624129,59023.0,59022.0,0.0008987]
[1724860465538,1.42491116,59023.0,59022.0,0.0048987]
[1724860465770,1.53124129,59023.0,59022.0,0.0048987]
[1724860466045,1.41589811,59023.0,59022.0,0.0048987]
[1724860466277,1.55229811,59023.0,59022.0,0.0048987]
[1724860466524,0.36627271,59023.0,59022.0,0.0048987]
[1724860466737,0.84921926,59023.0,59022.0,0.0048987]
[1724860466957,1.08676116,59023.0,59022.0,0.0048987]
[1724860467172,1.42561116,59023.0,59022.0,0.0048987]
[1724860467388,1.52690815,59023.0,59022.0,0.0048987]
[1724860467631,1.52690815,59023.0,59022.0,0.0008987]
[1724860467632,1.52590815,59023.0,59022.0,0.0008987]
[1724860467859,1.52590815,59023.0,59022.0,0.0088987]
[1724860468051,1.52590815,59023.0,59022.0,0.0118987]
[1724860468968,1.52590815,59023.0,59022.0,0.0038987]
[1724860469194,1.18705815,59023.0,59022.0,0.0118987]
[1724860469437,1.18705815,59023.0,59022.0,0.0088987]
[1724860469438,1.09119547,59023.0,59022.0,0.0088987]
[1724860469678,1.0152383,59023.0,59022.0,0.0118987]
[1724860469894,1.0152383,59023.0,59022.0,0.0088987]
[1724860470122,1.086449,59023.0,59022.0,0.0088987]
[1724860470337,1.086449,59023.0,59022.0,0.0138987]
[1724860470338,1.0152383,59023.0,59022.0,0.0138987]
[1724860470526,1.0152383,59023.0,59022.0,0.0058987]
[1724860470771,1.0152383,59023.0,59022.0,0.0158987]
[1724860471478,1.09118148,59023.0,59022.0,0.0158987]
[1724860472149,1.43003148,59023.0,59022.0,0.0158987]
[1724860472360,1.6929383,59023.0,59022.0,0.0158987]
[1724860472579,1.86637183,59023.0,59022.0,0.0158987]
[1724860473281,1.86437183,59023.0,59022.0,0.0158987]
[1724860474381,1.76307484,59023.0,59022.0,0.0158987]
[1724860474843,1.86937183,59023.0,59022.0,0.0158987]
[1724860475289,1.86929176,59023.0,59022.0,0.0158987]
[1724860475946,1.86929176,59023.0,59022.0,0.0108987]
[1724860476409,1.87129176,59023.0,59022.0,0.0108987]
[1724860476620,1.86929176,59023.0,59022.0,0.0008987]
[1724860476836,1.87029176,59023.0,59022.0,0.0008987]
[1724860477021,1.87229176,59023.0,59022.0,0.0008987]
[1724860477256,1.87429176,59023.0,59022.0,0.0008987]
[1724860477483,1.87329176,59023.0,59022.0,0.0008987]
[1724860478152,1.77207484,59023.0,59022.0,0.0008987]
[1724860478379,1.88324599,59023.0,59022.0,0.0008987]
[1724860478601,2.00871139,59023.0,59022.0,0.0008987]
[1724860478850,0.169491,59000.0,58999.0,0.0752]
[1724860479075,0.002,59012.0,58995.0,0.0008987]
[1724860479076,0.169503,58996.0,58995.0,0.0008987]
[1724860479303,0.169503,58996.0,58995.0,0.11656336]
[1724860480172,0.508509,58996.0,58995.0,0.0008987]
[1724860480444,0.847515,58996.0,58995.0,0.0008987]
[1724860480653,0.847515,58996.0,58995.0,0.0138987]
[1724860480861,0.847515,58996.0,58995.0,0.0278987]
[1724860481302,0.847515,58996.0,58995.0,0.0138987]
[1724860481513,0.847515,58996.0,58995.0,0.0148987]
[1724860481766,0.987915,58996.0,58995.0,0.0148987]
[1724860482004,1.86078459,58996.0,58995.0,0.0148987]
[1724860482240,2.38715878,58996.0,58995.0,0.0148987]
[1724860482449,2.14209557,58996.0,58995.0,0.0148987]
[1724860482690,2.16509557,58996.0,58995.0,0.0148987]
[1724860482943,2.16509557,58996.0,58995.0,0.0008987]
[1724860483179,2.50510157,58996.0,58995.0,0.0148987]
[1724860483417,2.50510157,58996.0,58974.0,0.50540786]
[1724860483418,0.847815,58975.0,58974.0,0.50540786]
[1724860483625,0.508689,58975.0,58974.0,0.50540786]
[1724860483850,0.508689,58975.0,58973.0,0.0831]
[1724860483851,0.508698,58974.0,58973.0,0.0831]
[1724860484069,0.508698,58974.0,58973.0,0.09791]
[1724860484070,0.84783,58974.0,58973.0,0.09791]
[1724860484562,1.186962,58974.0,58973.0,0.01481]
[1724860484783,0.508741,58969.0,58968.0,0.0831]
[1724860485244,0.508758,58967.0,58963.0,0.0831]
[1724860485457,0.508758,58967.0,58966.0,0.02219606]
[1724860485708,0.339132,58974.0,58966.0,0.02219606]
[1724860485916,0.339132,58974.0,58966.0,0.09719606]
[1724860485917,0.508758,58967.0,58966.0,0.09719606]
[1724860486365,0.169586,58967.0,58966.0,0.09719606]
[1724860487050,0.0658,58986.0,58972.0,0.16957]
[1724860487282,0.005,58990.0,58975.0,0.141]
[1724860487511,0.169554,58979.0,58975.0,0.141]
[1724860487710,0.339076,58984.0,58976.0,0.0666661]
[1724860487916,0.29821349,58991.0,58975.0,0.480124]
[1724860487917,0.169553,58979.0,58975.0,0.310563]
[1724860488196,0.169555,58978.0,58976.0,0.0666658]
[1724860488410,0.339085,58983.0,58976.0,0.0666658]
[1724860488411,0.169557,58977.0,58976.0,0.0666658]
[1724860488620,0.339085,58983.0,58976.0,0.0666658]
[1724860488842,0.169549,58980.0,58977.0,0.05637468]
[1724860490116,0.170549,58980.0,58977.0,0.06437468]
[1724860490326,0.002,58980.0,58977.0,0.23993068]
[1724860490547,0.171551,58980.0,58978.0,0.07867205]
[1724860490735,0.171551,58980.0,58977.0,0.014]
[1724860491851,0.171551,58980.0,58977.0,0.183557]
[1724860492071,0.002,58980.0,58977.0,0.014]
[1724860492279,0.171549,58980.0,58977.0,0.183556]
[1724860492492,0.001,58980.0,58978.0,0.07303478]
[1724860492921,0.002,58980.0,58978.0,0.24858878]
[1724860493146,0.002,58980.0,58978.0,0.07903478]
[1724860493355,0.339086,58982.0,58979.0,0.08033826]
[1724860493572,0.170548,58980.0,58979.0,0.08033826]
[1724860493996,0.001,58980.0,58979.0,0.08033826]
[1724860494449,0.002,58980.0,58979.0,0.08033826]
[1724860494645,0.001,58980.0,58979.0,0.08033826]
[1724860495422,0.170548,58980.0,58979.0,0.08033826]
[1724860495832,0.33909,58982.0,58979.0,0.08033826]
[1724860495833,0.169543,58982.0,58979.0,0.08033826]
[1724860496030,0.16954,58984.0,58980.0,0.28139428]
[1724860496235,0.16954,58984.0,58980.0,0.28039428]
[1724860496411,0.16954,58983.0,58980.0,0.28039428]
[1724860496633,0.16954,58983.0,58981.0,0.0632462]
[1724860496753,0.169543,58982.0,58981.0,0.0632462]
[1724860497179,0.001,58982.0,58981.0,0.0632462]
[1724860497404,0.001,58982.0,58980.0,0.0795]
[1724860497661,0.169541,58983.0,58980.0,0.0795]
[1724860497918,0.001,58982.0,58980.0,0.0795]
[1724860498104,0.001,58982.0,58980.0,0.0845]
[1724860498293,0.001,58982.0,58981.0,0.05940607]
[1724860498691,0.170543,58982.0,58981.0,0.05940607]
[1724860498890,0.509629,58982.0,58981.0,0.05940607]
[1724860499094,0.847772,58978.0,58977.0,0.0008987]
[1724860499597,0.1477,58982.0,58977.0,0.0008987]
[1724860499598,0.169549,58980.0,58977.0,0.0008987]
[1724860499808,0.169553,58979.0,58977.0,0.0008987]
[1724860500023,0.16955,58980.0,58978.0,0.02457587]
[1724860500246,0.169553,58979.0,58977.0,0.0008987]
[1724860500467,0.001,58978.0,58977.0,0.0148987]
[1724860500693,0.001,58978.0,58977.0,0.31544517]
[1724860500915,0.001,58978.0,58977.0,0.71916017]
[1724860501127,0.001,58979.0,58978.0,0.169553]
[1724860501338,0.169543,58982.0,58978.0,0.27558072]
[1724860501782,0.09318797,59004.0,58982.0,0.0634]
[1724860501783,0.0007,58993.0,58982.0,0.0634]
[1724860502045,0.10059144,59007.0,58982.0,0.0634]
[1724860502046,0.6638393,59008.0,58997.0,0.0813]
[1724860502250,0.05029572,59009.0,58997.0,0.08468979]
[1724860502467,0.4753,59013.0,58996.0,0.0634]
[1724860502671,0.4753,59013.0,59008.0,0.338936]
[1724860502882,0.4753,59013.0,59012.0,0.169457]
[1724860503115,0.000817,59023.0,59009.0,0.0643]
[1724860503116,0.98152486,59023.0,59009.0,0.0643]
[1724860503532,0.000817,59023.0,59010.0,0.338924]
[1724860503751,0.169435,59020.0,59011.0,0.0403224]
[1724860503963,0.169436,59019.0,59011.0,0.0403224]
[1724860504216,0.000817,59023.0,59022.0,0.233728]
[1724860504451,0.000817,59023.0,59022.0,0.5959568]
[1724860504671,0.000817,59023.0,59022.0,1.2736688]
[1724860504896,0.00818,59041.0,59036.0,0.169388]
[1724860505143,0.00818,59041.0,59036.0,0.91462728]
[1724860505571,0.00818,59041.0,59036.0,1.31202328]
[1724860505792,0.00818,59041.0,59036.0,1.43104383]
[1724860506017,0.00818,59041.0,59036.0,1.08888055]
[1724860506238,0.00818,59041.0,59036.0,0.75010455]
[1724860506714,0.00120455,59037.0,59036.0,0.76410455]
[1724860506939,0.00120455,59037.0,59036.0,0.42532855]
[1724860507154,0.00020455,59037.0,59036.0,0.75010455]
[1724860507386,0.00120455,59037.0,59036.0,0.42532855]
[1724860507600,0.00120455,59037.0,59036.0,0.27292055]
[1724860507812,0.00120455,59037.0,59036.0,0.28692055]
[1724860508052,0.17058955,59037.0,59036.0,0.028]
[1724860508515,0.00120455,59037.0,59036.0,0.014]
[1724860508747,0.00120455,59037.0,59036.0,0.183388]
[1724860508974,0.00120455,59037.0,59036.0,0.5743818]
[1724860508975,0.00020455,59037.0,59036.0,0.5743818]
[1724860509211,0.00020455,59037.0,59036.0,0.2496058]
[1724860509212,0.00120455,59037.0,59036.0,0.2496058]
[1724860509424,0.00120455,59037.0,59036.0,0.197388]
[1724860509633,0.00020455,59037.0,59036.0,0.522164]
[1724860509877,0.16958955,59037.0,59036.0,0.014]
[1724860510107,0.17058955,59037.0,59036.0,0.014]
[1724860510558,0.50935955,59037.0,59036.0,0.028]
[1724860510773,0.50935955,59037.0,59036.0,0.011632]
[1724860511002,0.50935955,59037.0,59036.0,0.025632]
[1724860511491,0.50935955,59037.0,59036.0,0.011632]
[1724860511718,0.84812955,59037.0,59036.0,0.025632]
[1724860512187,0.84812955,59037.0,59036.0,0.014]
[1724860512188,1.18589955,59037.0,59036.0,0.014]
[1724860512399,1.18589955,59037.0,59036.0,0.027]
[1724860512617,1.18689955,59037.0,59036.0,0.027]
[1724860513061,1.18589955,59037.0,59036.0,0.014]
[1724860513291,0.169413,59027.0,59026.0,0.0752]
[1724860513518,0.169413,59027.0,59026.0,0.09162728]
[1724860513765,0.169425,59023.0,59022.0,0.0233728]
[1724860513977,0.338843,59025.0,59016.0,0.0752]
[1724860514186,0.0798,59030.0,59017.0,0.01409]
[1724860514187,0.169441,59018.0,59017.0,0.01409]
[1724860514434,0.338845,59024.0,59017.0,0.01409]
[1724860514651,0.0618,59027.0,59018.0,0.008929]
[1724860514870,0.0618,59027.0,59026.0,0.014]
[1724860514871,0.508242,59027.0,59026.0,0.014]
[1724860515099,0.169432,59021.0,59018.0,0.008929]
[1724860515316,0.169426,59023.0,59019.0,0.0267663]
[1724860515552,0.169432,59021.0,59019.0,0.0267663]
[1724860515798,0.169434,59020.0,59018.0,0.008929]
[1724860516896,0.169434,59020.0,59018.0,0.016929]
[1724860517125,0.169436,59019.0,59018.0,0.028929]
[1724860517354,0.169434,59020.0,59018.0,0.008]
[1724860517596,0.001,59021.0,59020.0,0.169434]
[1724860517828,0.001,59021.0,59020.0,0.5349744]
[1724860518039,0.001,59021.0,59020.0,1.2879104]
[1724860518256,0.169396,59033.0,59026.0,0.338832]
[1724860518486,0.169396,59033.0,59028.0,0.169408]
[1724860518709,0.169399,59033.0,59027.0,0.169412]
[1724860518973,0.169399,59033.0,59027.0,0.338822]
[1724860519195,0.169399,59033.0,59029.0,0.169406]
[1724860519421,0.338782,59035.0,59028.0,0.169408]
[1724860519679,0.338789,59034.0,59029.0,0.050824]
[1724860519900,0.00020455,59037.0,59029.0,0.050824]
[1724860520123,0.001,59033.0,59030.0,0.169403]
[1724860520352,0.001,59033.0,59029.0,0.220231]
[1724860520592,0.001,59033.0,59032.0,0.169399]
[1724860520827,0.001,59033.0,59030.0,0.0735488]
[1724860521054,0.001,59033.0,59032.0,0.169399]
[1724860521288,0.001,59033.0,59032.0,0.22757508]
[1724860521527,0.001,59033.0,59032.0,0.71057408]
[1724860521767,0.001,59033.0,59032.0,0.71357408]
[1724860522228,0.00020455,59037.0,59032.0,0.54417508]
[1724860522442,0.001,59034.0,59033.0,0.338793]
[1724860522656,0.001,59034.0,59033.0,0.508189]
[1724860523141,0.00020455,59037.0,59032.0,0.20537608]
[1724860523142,0.00020455,59037.0,59034.0,0.169392]
[1724860523807,0.16958955,59037.0,59033.0,0.169394]
[1724860524025,0.16958955,59037.0,59034.0,0.07245761]
[1724860524677,0.00020455,59037.0,59034.0,0.24184961]
[1724860524908,0.16958955,59037.0,59034.0,0.08645761]
[1724860525133,0.16958955,59037.0,59035.0,0.07970237]
[1724860525379,0.169388,59036.0,59035.0,0.07970237]
[1724860525588,0.16958955,59037.0,59034.0,0.08645761]
[1724860525798,0.16958955,59037.0,59034.0,0.10045761]
[1724860526016,0.16958955,59037.0,59034.0,0.028]
[1724860526017,0.338782,59035.0,59034.0,0.028]
[1724860526236,0.846955,59035.0,59034.0,0.014]
[1724860526467,0.846955,59035.0,59024.0,0.338839]
[1724860526468,0.169402,59031.0,59027.0,0.169413]
[1724860526736,0.00020455,59037.0,59035.0,0.014]
[1724860526948,0.169388,59036.0,59035.0,0.014]
[1724860527162,0.169388,59036.0,59035.0,0.0662202]
[1724860527626,0.508164,59036.0,59035.0,0.0662202]
[1724860527858,0.508164,59036.0,59035.0,0.014]
[1724860528083,0.338776,59036.0,59031.0,0.169402]
[1724860528293,0.169391,59035.0,59031.0,0.169402]
[1724860528526,0.170391,59035.0,59034.0,0.012]
[1724860528974,0.169391,59035.0,59032.0,0.1261211]
[1724860529434,0.169396,59033.0,59032.0,0.0508211]
[1724860529676,0.169396,59033.0,59031.0,0.014]
[1724860529904,0.16941,59029.0,59023.0,0.414146]
[1724860530130,0.16941,59029.0,59026.0,0.04555599]
[1724860530356,0.00020455,59037.0,59026.0,0.04555599]
[1724860530582,0.169407,59030.0,59026.0,0.04555599]
[1724860530804,0.33897655,59037.0,59027.0,0.169412]
[1724860531034,0.169406,59030.0,59028.0,0.05952149]
[1724860532594,0.169408,59029.0,59028.0,0.05952149]
[1724860532829,0.50824,59027.0,59026.0,0.05955599]
[1724860533086,0.847182,59019.0,59013.0,0.0777]
[1724860533328,1.186055,59019.0,59011.0,0.0619]
[1724860533773,1.186055,59019.0,59009.0,0.0822]
[1724860534233,1.186055,59019.0,59007.0,0.00020401]
[1724860534497,1.186055,59019.0,59003.0,0.0781]
[1724860534716,1.186055,59019.0,59000.0,0.90718886]
[1724860534717,1.267955,59019.0,59000.0,0.56820786]
[1724860534948,1.672328,59019.0,59000.0,0.56820786]
[1724860535193,1.673328,59019.0,59018.0,0.0078987]
[1724860535701,1.672328,59019.0,59018.0,0.0008987]
[1724860535945,1.673328,59019.0,59018.0,0.0138987]
[1724860536170,1.673328,59019.0,59018.0,0.0068987]
[1724860536406,1.788328,59019.0,59018.0,0.0068987]
[1724860536832,1.79911061,59019.0,59018.0,0.0068987]
[1724860537038,1.79911061,59019.0,59018.0,0.0078987]
[1724860537271,1.79811061,59019.0,59018.0,0.0008987]
[1724860537731,1.80411061,59019.0,59018.0,0.0018987]
[1724860537946,1.437455,59019.0,59018.0,0.0018987]
[1724860538179,0.847182,59019.0,59018.0,0.0008987]
[1724860538617,0.856182,59019.0,59018.0,0.0018987]
[1724860538837,0.852182,59019.0,59018.0,0.0008987]
[1724860539116,0.508309,59019.0,59018.0,0.0008987]
[1724860539359,0.508309,59019.0,59018.0,0.0028987]
[1724860539360,0.850182,59019.0,59018.0,0.0028987]
[1724860540027,0.003,59019.0,59018.0,0.2495377]
[1724860540270,0.003,59019.0,59018.0,1.35732847]
[1724860540717,0.003,59019.0,59018.0,1.35532847]
[1724860541162,0.003,59019.0,59018.0,1.35732847]
[1724860541603,0.003,59019.0,59018.0,1.35532847]
[1724860541824,0.000817,59036.0,59019.0,0.1434]
[1724860542104,0.000817,59036.0,59030.0,0.0772]
[1724860542351,0.338783,59035.0,59030.0,0.0772]
[1724860542564,0.000817,59036.0,59030.0,0.0772]
[1724860542800,0.338782,59035.0,59030.0,0.0772]
[1724860543016,0.000817,59036.0,59030.0,0.0772]
[1724860543017,0.169399,59033.0,59030.0,0.0772]
[1724860543230,0.169399,59033.0,59031.0,0.024661]
[1724860543684,0.000817,59036.0,59031.0,0.024661]
[1724860543685,0.508198,59032.0,59031.0,0.024661]
[1724860543926,0.508198,59032.0,59030.0,0.0852]
[1724860543927,0.508207,59031.0,59030.0,0.008]
[1724860544151,0.76274587,59031.0,59030.0,0.008]
[1724860544603,1.10155087,59031.0,59030.0,0.008]
[1724860544829,0.16942,59025.0,59022.0,0.0772]
[1724860545037,0.16942,59025.0,59023.0,0.01642253]
[1724860545491,0.33883,59027.0,59023.0,0.01642253]
[1724860545711,0.25553887,59031.0,59023.0,0.01642253]
[1724860545712,0.001,59031.0,59030.0,0.007]
[1724860545974,0.001,59031.0,59030.0,0.2712466]
[1724860546193,0.00020455,59037.0,59033.0,0.169396]
[1724860546432,0.00020455,59037.0,59034.0,0.169392]
[1724860546642,0.00020455,59037.0,59035.0,0.0169392]
[1724860546893,0.00020455,59037.0,59035.0,0.169391]
[1724860547317,0.00020455,59037.0,59032.0,0.338796]
[1724860547529,0.00020455,59037.0,59034.0,0.169393]
[1724860547744,0.00020455,59037.0,59032.0,0.169397]
[1724860547959,0.169392,59035.0,59033.0,0.0650607]
[1724860548178,0.169393,59034.0,59033.0,0.0650607]
[1724860548388,0.001,59031.0,59030.0,0.323805]
[1724860548868,0.001,59031.0,59030.0,0.320805]
[1724860549094,0.170207,59036.0,59031.0,0.169401]
[1724860549306,0.001,59035.0,59033.0,0.012]
[1724860549528,0.001,59034.0,59033.0,0.024]
[1724860549803,0.170207,59036.0,59033.0,0.024]
[1724860549804,0.170207,59036.0,59033.0,0.07744597]
[1724860550685,0.001,59035.0,59033.0,0.08644597]
[1724860551751,0.170391,59035.0,59033.0,0.08644597]
[1724860551967,0.170391,59035.0,59033.0,0.09044597]
[1724860552184,0.170391,59035.0,59034.0,0.04588334]
[1724860552624,0.509173,59035.0,59034.0,0.04588334]
[1724860552836,0.001,59035.0,59034.0,0.04588334]
[1724860553051,0.509173,59035.0,59034.0,0.04588334]
[1724860553718,0.509173,59035.0,59034.0,0.05888334]
[1724860553933,0.508173,59035.0,59034.0,0.05888334]
[1724860554396,0.509173,59035.0,59034.0,0.07188334]
[1724860555133,0.847955,59035.0,59034.0,0.07188334]
[1724860555373,0.509173,59035.0,59034.0,0.026]
[1724860557157,0.847955,59035.0,59034.0,0.026]
[1724860558082,0.509173,59035.0,59034.0,0.026]
[1724860558324,0.509173,59035.0,59034.0,0.0455403]
[1724860558754,0.50896913,59035.0,59034.0,0.026]
[1724860560953,0.84775113,59035.0,59034.0,0.026]
[1724860561668,0.84675113,59035.0,59034.0,0.013]
[1724860561904,0.84675113,59035.0,59027.0,0.0826]
[1724860561905,0.169409,59029.0,59027.0,0.0826]
[1724860562139,0.169409,59029.0,59028.0,0.03152167]
[1724860562372,0.338798,59033.0,59028.0,0.03152167]
[1724860562601,0.169405,59030.0,59028.0,0.03152167]
[1724860563269,0.169408,59029.0,59028.0,0.03152167]
[1724860563956,0.50824,59027.0,59026.0,0.0008987]
[1724860564191,0.847067,59027.0,59026.0,0.0008987]
[1724860564423,1.48403325,59027.0,59026.0,0.0008987]
[1724860564633,1.63517953,59027.0,59026.0,0.0008987]
[1724860564869,1.55913325,59027.0,59026.0,0.0008987]
[1724860565139,1.16338183,59027.0,59026.0,0.0008987]
[1724860565354,1.0121755,59027.0,59026.0,0.0148987]
[1724860565576,1.0121755,59027.0,59026.0,0.0008987]
[1724860565577,1.0111755,59027.0,59026.0,0.0008987]
[1724860565825,1.0181755,59027.0,59026.0,0.0018987]
[1724860566056,1.0181755,59027.0,59026.0,0.0008987]
[1724860566287,1.11962294,59027.0,59026.0,0.0008987]
[1724860566501,1.1251308,59027.0,59026.0,0.0018987]
[1724860566713,1.4639578,59027.0,59026.0,0.0018987]
[1724860566939,1.1251308,59027.0,59026.0,0.0018987]
[1724860567156,1.02368337,59027.0,59026.0,0.0018987]
[1724860567612,1.02668337,59027.0,59026.0,0.0018987]
[1724860567825,1.01268337,59027.0,59026.0,0.0008987]
[1724860568031,1.01368337,59027.0,59026.0,0.0008987]
[1724860568269,1.00968337,59027.0,59026.0,0.0008987]
[1724860568501,1.11110828,59027.0,59026.0,0.0048987]
[1724860568718,1.44993528,59027.0,59026.0,0.0048987]
[1724860569424,1.47529151,59027.0,59026.0,0.0048987]
[1724860569889,1.44743576,59027.0,59026.0,0.0048987]
[1724860570570,1.03350876,59027.0,59026.0,0.0048987]
[1724860571012,1.37309453,59027.0,59026.0,0.0048987]
[1724860573252,0.18970053,59027.0,59026.0,0.1743147]
[1724860573467,0.05070466,59027.0,59026.0,0.36932317]
[1724860573713,0.05070108,59029.0,59027.0,0.338827]
[1724860573949,0.000817,59031.0,59027.0,0.338827]
[1724860573950,0.05151808,59031.0,59030.0,0.169405]
[1724860574208,0.000817,59031.0,59030.0,0.508215]
[1724860574420,0.000817,59031.0,59030.0,0.61178104]
[1724860574635,0.000817,59031.0,59030.0,0.44237604]
[1724860574870,0.509024,59031.0,59030.0,0.10256604]
[1724860575099,0.169405,59030.0,59029.0,0.0816]
[1724860576714,0.05351948,59031.0,59030.0,0.169405]
[1724860576967,0.001817,59031.0,59030.0,0.53992537]
[1724860577455,0.001817,59031.0,59030.0,0.20011537]
[1724860577675,0.001817,59031.0,59030.0,0.53892537]
[1724860578109,0.000817,59031.0,59030.0,0.53892537]
[1724860578347,0.000817,59031.0,59030.0,0.53792537]
[1724860579221,0.001817,59031.0,59030.0,0.55192537]
[1724860579447,0.002817,59031.0,59030.0,0.56392537]
[1724860580616,0.002817,59031.0,59030.0,0.22601407]
[1724860580823,0.002817,59031.0,59030.0,0.56482407]
[1724860582328,0.172219,59031.0,59030.0,0.05860907]
[1724860582767,0.22294453,59031.0,59030.0,0.05860907]
[1724860582975,0.56174953,59031.0,59030.0,0.0268987]
[1724860583194,0.90055515,59031.0,59030.0,0.0268987]
[1724860583429,0.92591823,59031.0,59030.0,0.0268987]
[1724860583664,0.68931433,59031.0,59030.0,0.0268987]
[1724860583919,0.511024,59031.0,59030.0,0.0268987]
[1724860584136,0.19767063,59031.0,59030.0,0.04662004]
[1724860584378,0.1977145,59031.0,59030.0,0.1068987]
[1724860584596,0.1977145,59031.0,59030.0,0.2763037]
[1724860585262,0.22303371,59031.0,59030.0,0.2763037]
[1724860585443,0.22303371,59031.0,59030.0,0.6151137]
[1724860585713,0.09621832,59031.0,59030.0,0.67671504]
[1724860585928,0.09621832,59031.0,59030.0,0.33790504]
[1724860586360,0.22303371,59031.0,59030.0,0.67671504]
[1724860586787,0.22303371,59031.0,59030.0,0.33790504]
[1724860587462,0.22303371,59031.0,59030.0,0.67671504]
[1724860587922,0.22303371,59031.0,59030.0,1.01552504]
[1724860588633,0.22303371,59031.0,59030.0,0.67671504]
[1724860588860,0.22303371,59031.0,59030.0,0.25790504]
[1724860589102,0.09621832,59031.0,59030.0,0.08850004]
[1724860589750,0.26562032,59031.0,59030.0,0.0268987]
[1724860590187,0.26840099,59031.0,59030.0,0.0268987]
[1724860590914,0.09899899,59031.0,59030.0,0.0268987]
[1724860591356,0.26840099,59031.0,59030.0,0.0268987]
[1724860592273,0.26840099,59031.0,59030.0,0.04661964]
[1724860593148,0.60720599,59031.0,59030.0,0.04661964]
[1724860593365,0.26840099,59031.0,59030.0,0.0268987]
[1724860594300,0.60720599,59031.0,59030.0,0.0268987]
[1724860594542,0.26840099,59031.0,59030.0,0.0268987]
[1724860594781,0.09751799,59031.0,59030.0,0.06356134]
[1724860595011,0.26691999,59031.0,59030.0,0.06356134]
[1724860595453,0.09751799,59031.0,59030.0,0.06356134]
[1724860595670,0.26691999,59031.0,59030.0,0.06356134]
[1724860596580,0.09751799,59031.0,59030.0,0.23296634]
[1724860596800,0.09751799,59031.0,59030.0,0.65187634]
[1724860597013,0.09751799,59031.0,59030.0,0.99068634]
[1724860597875,0.09751799,59031.0,59030.0,1.05138634]
[1724860598310,0.09751799,59031.0,59030.0,1.39019634]
[1724860598535,0.12980572,59031.0,59030.0,1.39019634]
[1724860598773,0.002817,59031.0,59030.0,1.39019634]
[1724860600770,0.05361187,59031.0,59030.0,0.23296634]
[1724860601219,0.05361187,59031.0,59030.0,0.57177634]
[1724860601440,0.05361187,59031.0,59030.0,0.06356134]
[1724860601677,0.05340798,59031.0,59030.0,0.06356134]
[1724860601911,0.58701241,59031.0,59030.0,0.06356134]
[1724860602150,0.92581741,59031.0,59030.0,0.0268987]
[1724860602591,0.92481741,59031.0,59030.0,0.0128987]
[1724860602802,0.92381741,59031.0,59030.0,0.0008987]
[1724860603046,0.92481741,59031.0,59030.0,0.0138987]
[1724860603265,0.92581741,59031.0,59030.0,0.0228987]
[1724860603495,1.18743011,59031.0,59030.0,0.0098987]
[1724860603769,1.18743011,59031.0,59030.0,0.0228987]
[1724860603770,1.36918738,59031.0,59030.0,0.0228987]
[1724860603982,1.43388738,59031.0,59030.0,0.0228987]
[1724860604452,1.77669238,59031.0,59030.0,0.0138987]
[1724860604670,1.96290262,59031.0,59030.0,0.0138987]
[1724860604911,1.96590262,59031.0,59030.0,0.0228987]
[1724860605131,2.07490262,59031.0,59030.0,0.0138987]
[1724860605349,2.07490262,59031.0,59030.0,0.0028987]
[1724860605350,2.24631137,59031.0,59030.0,0.0028987]
[1724860605559,2.24531137,59031.0,59030.0,0.0028987]
[1724860605770,2.24631137,59031.0,59030.0,0.0068987]
[1724860605996,2.25431137,59031.0,59030.0,0.0078987]
[1724860606220,2.25331137,59031.0,59030.0,0.0018987]
[1724860606488,2.25372649,59031.0,59030.0,0.0028987]
[1724860606921,2.28408959,59031.0,59030.0,0.0018987]
[1724860607350,1.87192149,59031.0,59030.0,0.0018987]
[1724860607587,1.70041894,59031.0,59030.0,0.0018987]
[1724860608023,1.35661394,59031.0,59030.0,0.0018987]
[1724860608256,1.35661394,59031.0,59030.0,0.0028987]
[1724860608257,1.27608046,59031.0,59030.0,0.0028987]
[1724860608489,1.10488046,59031.0,59030.0,0.0008987]
[1724860608700,1.09353008,59031.0,59030.0,0.0018987]
[1724860608941,0.77372508,59031.0,59030.0,0.0028987]
[1724860609190,0.76572508,59031.0,59030.0,0.0008987]
[1724860609395,0.75472508,59031.0,59030.0,0.0008987]
[1724860609640,0.75772508,59031.0,59030.0,0.0008987]
[1724860609868,0.76472508,59031.0,59030.0,0.0018987]
[1724860610078,1.10053008,59031.0,59030.0,0.0018987]
[1724860610544,1.52013508,59031.0,59030.0,0.0118987]
[1724860610764,1.11532841,59031.0,59030.0,0.0118987]
[1724860610984,1.1015476,59031.0,59030.0,0.0118987]
[1724860611201,0.94209117,59031.0,59030.0,0.0108987]
[1724860611424,0.7557571,59031.0,59030.0,0.0108987]
[1724860611661,0.60428617,59031.0,59030.0,0.0178987]
[1724860611881,0.60428617,59031.0,59030.0,0.04433004]
[1724860612121,0.60428617,59031.0,59030.0,0.0178987]
[1724860612570,0.60684882,59031.0,59030.0,0.0178987]
[1724860613025,0.26804382,59031.0,59030.0,0.0178987]
[1724860614328,0.42051238,59031.0,59030.0,0.0178987]
[1724860614763,0.25111038,59031.0,59030.0,0.0178987]
[1724860614967,0.25111038,59031.0,59030.0,0.08508254]
[1724860615215,0.09864182,59031.0,59030.0,0.59329754]
[1724860615472,0.22573539,59031.0,59030.0,1.01170754]